Cogmind - Beta 16 --- EXPLORER MODE // 2025.12.02 @ 16:52:26 Player: K.K.Y. Result: Destroyed by YU-7GP(R) with Subdweller Laser Performance ------------- Evolutions (0) 0 Regions Visited (3) 600 Robots Destroyed (31) 155 Value Destroyed (922) 922 Prototype IDs (2) 40 Alien Tech Used (0) 0 Bonus (44) 44 TOTAL SCORE: 1761 Bonus ------- Follower Combat Kills 44 Cogmind --------- Core Integrity 0/250 Matter 300/300 Energy 250/250 System Corruption 0% Temperature Cool (6) Movement Rolling (130) Ox2 Location -10/Subcaves Parts ------- > --- POWER (1) -------- Ion Engine > --- PROPULSION (2) --- Subdweller Monowheel Subdweller Monowheel > --- UTILITY (3) ------ Huge Storage Unit Structural Scanner > --- WEAPON (2) ------- Particle Cannon Ripper > --- INVENTORY (25) --- Combat Airjet Combat Airjet Combat Airjet Huge Storage Unit Humpback Humpback Mining Laser SUBCON Basin (Full) Peak State ------------ > --- POWER ------------ Ion Engine > --- PROPULSION ------- Subdweller Monowheel Subdweller Monowheel > --- UTILITY ---------- Huge Storage Unit Structural Scanner > --- WEAPON ----------- Particle Cannon Ripper > --- INVENTORY -------- Combat Airjet Combat Airjet Combat Airjet Huge Storage Unit Humpback Humpback Mining Laser SUBCON Basin [Rating: 33] Favorites ----------- Power Ion Engine Engine Ion Engine Propulsion Light Treads Treads Light Treads Wheel Subdweller Monowheel Utility Structural Scanner Device Structural Scanner Storage Medium Storage Unit Protection Core Shielding Weapon Particle Cannon Energy Gun Small Laser Energy Cannon Particle Cannon Special Weapon Mining Laser Slashing Weapon Ripper Build | -11 -10 -10 -10 ------- Run | Yrd Mat Min Sub Slots Evolved 1 | . 1 . . Power . | . . . . Propulsion . | . . . . Utility 1 | . 1 . . Weapon . | . . . . Parts Attached 23 | 3 10 . 10 Power 3 | 1 . . 2 Engine 3 | 1 . . 2 Core . | . . . . Reactor . | . . . . Propulsion 7 | . 4 . 3 Treads 4 | . 4 . . Leg . | . . . . Wheel 3 | . . . 3 Hover . | . . . . Flight . | . . . . Utility 5 | 2 2 . 1 Device 2 | 1 1 . . Storage 2 | . 1 . 1 Processor . | . . . . Hackware . | . . . . Protection 1 | 1 . . . Artifact . | . . . . Weapon 8 | . 4 . 4 Energy Gun 2 | . 2 . . Energy Cannon 4 | . 2 . 2 Ballistic Gun . | . . . . Ballistic Cannon . | . . . . Launcher . | . . . . Special Weapon 1 | . . . 1 Impact Weapon . | . . . . Slashing Weapon 1 | . . . 1 Piercing Weapon . | . . . . Special Melee Weapon . | . . . . Unidentified Prototypes . | . . . . Parts Lost 4 | . . . 4 Power . | . . . . Propulsion 2 | . . . 2 Utility 1 | . . . 1 Weapon 1 | . . . 1 Highest Loss Streak 2 | . . . 2 To Critical Strikes . | . . . . Average Backups 8 | 2 7 9 8 Power 1 | . . 1 1 Propulsion 2 | 1 1 2 3 Utility 2 | . 1 2 2 Weapon 2 | 1 3 3 1 Tool/Special . | . . . . Unused Backups 6 | . . . 6 Power . | . . . . Propulsion 3 | . . . 3 Utility 3 | . . . 3 Weapon . | . . . . Tool/Special . | . . . . Average Slot Usage (%) 94 | . 87 100 98 Engine 11 | . 11 12 12 Treads 16 | . 12 25 16 Wheel 2 | . . . 6 Device 23 | . 21 25 24 Storage 11 | . 11 12 12 Protection 1 | . 3 . . Energy Gun 1 | . 2 . . Energy Cannon 23 | . 21 25 24 Peak Build Rating 33 | 3 11 12 33 Average Rating 15 | 2 9 11 21 On Entrance 6 | . 3 11 12 Avg Prop Armor Cover (%) . | . . . . Naked Turns . | . . . . Heaviest Build 95 | 7 25 25 95 Greatest Support 40 | 3 40 40 40 Greatest Overweight (x) 31 | 2 8 . 31 Average Overweight (x) 1 | . 1 . 1 Largest Inventory Capacity 25 | 5 10 10 25 Average Capacity 13 | 5 9 10 18 Most Carried 25 | 5 10 10 25 Average Carried 12 | 3 7 9 17 Final Capacity 25 | 5 10 10 25 Final Carried 24 | 5 9 10 24 Class Distribution -------------------- 100% | Hacker-Mutant Dominant Class ---------------- Hacker-Mutant | -10/Materials Hacker-Mutant | -10/Mines Hacker-Mutant | -10/Subcaves Resources | -11 -10 -10 -10 ----------- Run | Yrd Mat Min Sub Matter Collected 450 | 80 260 . 110 Remotely . | . . . . Salvage Created 1262 | . 495 231 536 Parts 54 | . 19 7 28 Haulers Intercepted 2 | . 2 . . Recyclers Shooed . | . . . . Parts Field Recycled . | . . . . Retrieved Matter . | . . . . Parts Self-Destructed . | . . . . Prevented . | . . . . Parts Restored . | . . . . Kills | -11 -10 -10 -10 ------- Run | Yrd Mat Min Sub Combat Hostiles Destroyed 24 | . 8 3 13 Melee 1 | . . . 1 Guns 3 | . 3 . . Cannons 19 | . 4 3 12 AOE 1 | . 1 . . Classes Destroyed 8 | . 4 2 2 Hauler 2 | . 2 . . Recycler 1 | . . 1 . Turret 2 | . . . 2 Watcher 3 | . 3 . . Swarmer 4 | . 2 . 2 Grunt 8 | . 6 2 . Subdweller 11 | . . . 11 Assembled 1 | . . 1 . Best Kill Streak 2 | . 2 2 2 Combat Bots Only 2 | . 2 2 2 Max Kills in Single Turn 1 | . 1 1 1 Gunslinging . | . . . . Exploded 1 | . 1 . . Melee 1 | . . . 1 Uniques/NPCs Destroyed . | . . . . Combat | -11 -10 -10 -10 -------- Run | Yrd Mat Min Sub Hostile Shots Fired 154 | . 41 3 110 Missed 51 | . 10 3 38 Hits 103 | . 31 . 72 Projectile 103 | . 31 . 72 AOE 4 | . . . 4 Critical Strikes 1 | . . . 1 Damage Taken 1162 | . 274 . 888 Core 256 | . 78 . 178 Absorbed by Shields . | . . . . Redirected to Shielding 14 | . 14 . . Ignored by Resistances 707 | . 173 . 534 Core Remaining (%) 100 | 100 . . . Volleys Fired 110 | . 32 12 66 Largest 2 | . 2 2 2 Hottest 168 | . 136 136 168 Shots Fired 218 | . 63 24 131 Gun 27 | . 27 . . Cannon 188 | . 36 24 128 Launcher . | . . . . Special 3 | . . . 3 Kinetic . | . . . . Thermal 204 | . 49 24 131 Explosive . | . . . . Electromagnetic 14 | . 14 . . Robot Hit Streak 36 | . 36 20 19 Robot Miss Streak 1 | . 1 1 1 Penetration Max . | . . . . Secondary Targets . | . . . . Shots Hit Robots 150 | . 50 18 82 Core Hits 53 | . 17 9 27 Critical Kills . | . . . . Critical Parts Destroyed . | . . . . Critical Strikes . | . . . . Melee Attacks 3 | . . . 3 Impact . | . . . . Slashing 3 | . . . 3 Piercing . | . . . . Sneak Attacks . | . . . . Combat Hostiles . | . . . . Follow-up Attacks . | . . . . Damage Inflicted 2983 | . 873 389 1721 Guns 285 | . 285 . . Cannons 2545 | . 555 389 1601 Explosions 33 | . 33 . . Melee 120 | . . . 120 Ramming . | . . . . Kinetic . | . . . . Thermal 2683 | . 693 389 1601 Explosive . | . . . . Electromagnetic 180 | . 180 . . Impact . | . . . . Slashing 120 | . . . 120 Piercing . | . . . . Highest Corruption . | . . . . Average Corruption . | . . . . Corruption Purged . | . . . . Corruption Blocked . | . . . . Overload Shots . | . . . . Overflow Damage 16 | . 11 1 4 Projectiles 16 | . 11 1 4 Explosions . | . . . . Melee . | . . . . Knockbacks . | . . . . Impact . | . . . . Kinetic . | . . . . Secondary . | . . . . Self-Inflicted Damage 21 | . 21 . . Shots 1 | . 1 . . Rammed . | . . . . Targets Rammed . | . . . . Kicked . | . . . . Crushed . | . . . . Highest Temperature 338 | . 338 225 186 Average Temperature 75 | . 106 79 47 Received Heat Transfer 447 | . 201 . 246 Siege Activations . | . . . . Martial Activations . | . . . . Shielding Activations . | . . . . Robots Disrupted . | . . . . Combat Hostiles . | . . . . Robots Corrupted . | . . . . Combat Hostiles . | . . . . Parts Fried 1 | . 1 . . Impact Corruptions . | . . . . Robots Melted . | . . . . Combat Hostiles . | . . . . Parts Melted 10 | . 3 . 7 Heat Transferred 4888 | . 1299 703 2886 Parts Sabotaged . | . . . . Parts Stolen . | . . . . Parts Stripped . | . . . . Power Chain Reactions 1 | . 1 . . Alert | -11 -10 -10 -10 ------- Run | Yrd Mat Min Sub Maximum Alert Level . | . . . . Low Security (%) 100 | 100 100 100 . Level 1 . | . . . . Level 2 . | . . . . Level 3 . | . . . . Level 4 . | . . . . Level 5 . | . . . . High Security . | . . . . Max Security . | . . . . Peak Influence 66 | . 66 50 . Initial . | . . . . Average 3 | . 4 2 . Influence Increases 446 | . 239 55 152 Destroy 0b10 Robot/C 320 | . 160 40 120 Destroy 0b10 Robot/NC 30 | . 25 5 . Destroy Leader 60 | . 50 10 . Allied During Kill 2 | . . . 2 Destroy Structure 4 | . 4 . . Lose Combat Pursuer 30 | . . . 30 Influence Decreases 446 | . 239 55 152 Time Decay 386 | . 239 55 92 Lost Ally 60 | . . . 60 Squads Dispatched . | . . . . Investigation . | . . . . Extermination . | . . . . Reinforcement . | . . . . Assault . | . . . . Garrison . | . . . . Intercept . | . . . . Searches Triggered . | . . . . Construction Impeded . | . . . . Haulers Reinforced . | . . . . Active Scanning Responses . | . . . . Cargo Convoy Interrupts . | . . . . Stealth | -11 -10 -10 -10 --------- Run | Yrd Mat Min Sub Distress Signals . | . . . . Communications Jammed . | . . . . Distress Signals . | . . . . Times Spotted 42 | . 15 3 24 Peak Tracking Total 6 | . 4 2 6 Tactical Retreats 1 | . . . 1 Traps | -11 -10 -10 -10 ------- Run | Yrd Mat Min Sub Traps Triggered 3 | . 2 . 1 Indirectly . | . . . . Trap Hack Attempts . | . . . . Triggered . | . . . . Disarmed . | . . . . Reprogrammed . | . . . . Reused . | . . . . Traps Extracted . | . . . . Installed . | . . . . Triggered . | . . . . Machines | -11 -10 -10 -10 ---------- Run | Yrd Mat Min Sub Machines Disabled 1 | . . . 1 Max in Single Turn 1 | . . . 1 Machines Repaired . | . . . . Machines Dismantled . | . . . . Machines Sabotaged . | . . . . Overloaded Fab Kills . | . . . . Hacking | -11 -10 -10 -10 --------- Run | Yrd Mat Min Sub Machines Accessed 4 | . 2 . 2 Terminals 2 | . 2 . . Fabricators . | . . . . Repair Stations . | . . . . Recycling Units . | . . . . Scanalyzers . | . . . . Garrison Access . | . . . . Total Hacks 5 | . 2 . 3 Successful 5 | . 2 . 3 Failed . | . . . . Catastrophic . | . . . . Database Lockouts . | . . . . Manual . | . . . . Terminals 2 | . 2 . . Fabricators . | . . . . Repair Stations . | . . . . Recycling Units . | . . . . Scanalyzers . | . . . . Garrison Access . | . . . . Terminal Hacks 5 | . 2 . 3 Record 1 | . . . 1 Robot Analysis 1 | . 1 . . Prototype ID Bank 1 | . 1 . . Open Door 1 | . . . 1 Release Object 1 | . . . 1 Fabricator Hacks . | . . . . Repair Station Hacks . | . . . . Recycling Unit Hacks . | . . . . Scanalyzer . | . . . . Garrison Access Hacks . | . . . . Unauthorized Hacks . | . . . . Terminals . | . . . . Fabricators . | . . . . Repair Stations . | . . . . Recycling Units . | . . . . Scanalyzers . | . . . . Garrison Access . | . . . . Data Cores Recovered . | . . . . Used . | . . . . Hacking Detections 1 | . 1 . . Full Trace Events . | . . . . Feedback Events . | . . . . Feedback Blocked . | . . . . Robot Schematics Acquired . | . . . . Robots Built . | . . . . Authchips . | . . . . Time . | . . . . Total Robot Build Rating . | . . . . Part Schematics Acquired . | . . . . Parts Built . | . . . . Authchips . | . . . . Time . | . . . . Total Part Build Rating . | . . . . Part Studies Acquired . | . . . . Parts Repaired . | . . . . Time . | . . . . Parts Recycled . | . . . . Recycled Matter . | . . . . Retrieved Matter . | . . . . Retrieved Components . | . . . . Parts Scanalyzed . | . . . . Part Schematics Acquired . | . . . . Parts Damaged . | . . . . Bothacking | -11 -10 -10 -10 ------------ Run | Yrd Mat Min Sub Used RIF Installer . | . . . . Robots Hacked . | . . . . Non-combat . | . . . . Combat . | . . . . Robot Hacks Applied . | . . . . Relay Couplers Released . | . . . . Fabnet Peak Effective % . | . . . . Robots Rewired . | . . . . Allies Hacked . | . . . . Hacks Repelled . | . . . . Allies | -11 -10 -10 -10 -------- Run | Yrd Mat Min Sub Total Allies 5 | . . 5 . Largest Group 5 | . . 5 5 Highest-Rated Group 79 | . . 79 79 Highest-Rated Ally 31 | . . 31 31 Total Orders . | . . . . Ally Attacks 19 | . . . 19 Total Damage 217 | . . . 217 Kills 3 | . . . 3 Allies Corrupted . | . . . . Allies Melted . | . . . . Intel | -11 -10 -10 -10 ------- Run | Yrd Mat Min Sub Active Infowar (turns) 5029 | 39 1830 1035 2125 Sensors 4426 | . 1275 1035 2116 Structural 5029 | 39 1830 1035 2125 Robot Analysis Total 1 | . 1 . . Derelict Logs Recovered 1 | . . 1 . Drone Launches . | . . . . Drone Recoveries . | . . . . Exploration | -11 -10 -10 -10 ------------- Run | Yrd Mat Min Sub Turns Passed 5039 | 49 1830 1035 2125 Spaces Moved 2365 | 50 701 580 1034 Core 230 | 50 174 . 6 Treads 1783 | . 527 580 676 Legs . | . . . . Wheels 352 | . . . 352 Hover . | . . . . Flight . | . . . . Fastest Speed 50 | 50 160 160 130 Average Speed 187 | 80 231 160 177 Slowest Speed 1600 | 150 450 160 1600 Overloaded Moves . | . . . . Propulsion Burnouts . | . . . . Robots Hopped . | . . . . Potential Cave-ins . | . . . . Cave-ins Triggered . | . . . . Exploration Rate (%) 62 | 4 96 88 62 Regions Visited 3 Branch Regions 2 Pre-discovered Areas 1 | . . . 1 Known Exits Taken 3 | 1 1 1 . Unknown Exits Taken . | . . . . Scrap Searched 4 | . . 1 3 Spaces Dug . | . . . . Terrain Destroyed 3 | . 3 . . Melee . | . . . . Projectile . | . . . . AOE 3 | . 3 . . Terrain Rammed . | . . . . Walls Destroyed . | . . . . Machines Disabled . | . . . . Actions | -11 -10 -10 -10 --------- Run | Yrd Mat Min Sub Total 2754 | 59 848 666 1181 Wait 200 | . 88 60 52 Move 2362 | 49 700 579 1034 Hop . | . . . . Pick Up 33 | 7 14 5 7 Fast Attach 4 | 1 2 . 1 Attach 14 | 2 9 . 3 Detach 1 | . 1 . . Swap 8 | . . . 8 Drop 13 | . 2 4 7 Fire 110 | . 32 12 66 Melee 3 | . . . 3 Ram . | . . . . Kick . | . . . . Crush . | . . . . Escape Stasis . | . . . . Rewire 6 | . . 6 . Trap . | . . . . Miscellaneous . | . . . . Route ------- -11/Scrapyard -10/Materials (discovered 5 exits: *Mat x3 / *Min / Sub) -10/Mines (discovered 3 exits: *Mat / *Exi / *Sub) -10/Subcaves (discovered 2 exits: *Mat / *Rec) History --------- Turn | Location | Event 8 | -11/Scrapyard | Identified exit to Materials 8 | -11/Scrapyard | Discovered exit to Materials (range 15) 50 | -11/Scrapyard | Entered Materials 50 | -10/Materials | Evolved 1 slot: Utility x1 221 | -10/Materials | Identified exit to Mines 221 | -10/Materials | Discovered exit to Mines (range 16) 311 | -10/Materials | Build established: Hacker-Mutant 545 | -10/Materials | Identified exit to Materials 545 | -10/Materials | Discovered exit to Materials (range 12) 871 | -10/Materials | Discovered exit to Materials (range 16) 1410 | -10/Materials | Discovered exit to Materials (range 8) 1416 | -10/Materials | Identified exit to Subcaves 1416 | -10/Materials | Discovered exit to Subcaves (range 11) 1880 | -10/Materials | Entered Mines 2006 | -10/Mines | Learned Materials stockpile data 2076 | -10/Mines | Assembled infested the area 2113 | -10/Mines | Met 8R-AWN 2205 | -10/Mines | Identified exit to Exiles 2205 | -10/Mines | Discovered exit to Exiles (range 5) 2427 | -10/Mines | Discovered exit to Materials (range 9) 2746 | -10/Mines | Assisted by bots powering up and referring to "LRC-V3" 2894 | -10/Mines | Discovered exit to Subcaves (range 7) 2915 | -10/Mines | Entered Subcaves 2915 | -10/Subcaves | Accompanied by 5 allies 2920 | -10/Subcaves | Led the pair of lost Derelicts to an unsafe place 3010 | -10/Subcaves | Shifting Twisted Machinery released Sub. Monowheel 3014 | -10/Subcaves | Shifting Twisted Machinery released Scrap Shield 3345 | -10/Subcaves | A swath of the cavern ceiling suddenly collapsed 3647 | -10/Subcaves | Identified exit to Recycling 3647 | -10/Subcaves | Discovered exit to Recycling (range 16) 3698 | -10/Subcaves | Lost 3 allies 3910 | -10/Subcaves | Found SUBCON Basin 4487 | -10/Subcaves | Shifting Twisted Machinery released Battle Rifle 4487 | -10/Subcaves | Identified exit to Materials 4487 | -10/Subcaves | Discovered exit to Materials (range 15) 4493 | -10/Subcaves | Shifting Twisted Machinery released Ripper 4526 | -10/Subcaves | Learned location of Zion (-7) 4526 | -10/Subcaves | Met a Zionite searching for "candidates" 4679 | -10/Subcaves | Core integrity fell below 50% 4717 | -10/Subcaves | Curiously followed by a Cobbler waking with a query about "LVR3C" 5008 | -10/Subcaves | Shifting Twisted Machinery released Mak. Hammer 5010 | -10/Subcaves | A swath of the cavern ceiling suddenly collapsed 5023 | -10/Subcaves | A Subdweller sparked back to life 5023 | -10/Subcaves | A Subdweller sparked back to life 5023 | -10/Subcaves | A Subdweller sparked back to life 5027 | -10/Subcaves | Core integrity fell below 20% 5040 | -10/Subcaves | Destroyed by YU-7GP(R) with Subdweller Laser Last Messages --------------- Mak. Hammer falls loose from the Twisted Machinery. A swath of the cavern ceiling suddenly collapses. 05023_ AC-F42(R) creaks and sparks as it begins to move. 05023_ XM-QQF(R) creaks and sparks as it begins to move. 05023_ YU-7GP(R) creaks and sparks as it begins to move. 05024_ AC-F42(R) destroyed. 05026_ 51-5QQ(R) affixes Scrap Shield Fragment to Scrap Shield. 05030_ Particle Cannon destroyed. 05031_ Sensor Array destroyed. 05034_ 51-5QQ(R) affixes Scrap Shield Fragment to Scrap Shield. 05035_ Acquired 10 matter. 05038_ XM-QQF(R) destroyed. 05039_ 8P-3BH(R) destroyed. Map ----- +----------------------------------------------------+ | ?????????????????????????????????????????????????? | | ?????????????????????????????????????????????????? | | ?????????????????????????????????????????????????? | | ?????????????????????????????????????????????????? | | ?????????????????????????????????????????????????? | | ?????????????????????????????????????????????????? | | ?????????????????????????????????????????????????? | | ?????????????????????????????????????????????????? | | ?????????????????????????????????????????????????? | | ?????????????????????????????????????????????????? | | ?????????????????????????????????????????????????? | | ?????????????????????????????????????????????????? | | ?????????????????????????????????????????????????? | | ?????????????????????????????????????????????????? | | ?????????????????????????????????????????????????? | | ?????????????????????????????????????????????????? | | # ##????????????????????????????????????????????? | | # ##????????????????????????????????????????????? | | #???????###??????######## ??"##??????????????? | | ?????????## ??????#########?? ###?????????????? | | ?????## ?????### < # ###?????????????? | | ##### "###### < ## ##?????????????? | | ##### #"#####<& * ?????????????????? | | ## ## "#### &&<&!< ???????????????????? | | " ## "###" #%=R #????????????????????? | | """ ## # ## R&!@#"#????????????????????? | | """ " ""## ## &!/"#"""""????????????????? | | """"""""""""### # ## ; " "##??????????????? | | """" "" ### ####;; ##%# ###??????????????? | | ####" """" ## # ##;#;####"#"####??????????????? | | #####"""" "#;;########""" ???????????????? | | ""###*"""" # # O;##"#"####""??????????????????? | | ##########""# ?????????????????? | | "" """ " ####### "#" ### ???????????????? | | """"""""" ###??"#" ##### ?????????????????? | | ##"" # ##??#"# ###???????????????????? | | ### # ### #" ##????????????????????? | | ### ####### # #####"? ##????????????????????? | | "### ###############" ##????????????????????? | | #### ##????######???? #????????????????????? | | ###########?????????????? ##????????????????????? | | ??#########??????????????####????????????????????? | | ?????????????????????????####????????????????????? | | ?????????????????????????????????????????????????? | | ?????????????????????????????????????????????????? | | ?????????????????????????????????????????????????? | | ?????????????????????????????????????????????????? | | ?????????????????????????????????????????????????? | | ?????????????????????????????????????????????????? | | ?????????????????????????????????????????????????? | +----------------------------------------------------+ Best States ------------- Heat Dissipation 25 Energy Generation 10 Energy Capacity 250 Matter Stores 300 Matter Capacity 300 Sight Range 16 Robot Scan Range 14 Terrain Scan Density 10 Resistance: KI 35 Resistance: TH 35 Resistance: EX 35 Resistance: EM 35 Resistance: I 35 Resistance: S 35 Resistance: P 35 Core Shielding 20 Evasion (%) 50 Recoil Reduction 2 Offensive Hacking 20 Item Schematics ----------------- None Robot Schematics ------------------ None Fabricated ------------ Nothing Repaired ---------- Nothing Studied --------- None Alien Tech Used ----------------- None Achievements -------------- None Challenges ------------ None Game ------ Seed NeutrinoCloakCompressor Manual? 0 Play Time 00:19:13 Cumulative 156.3 hours Start 2025.12.02 @ 16:33:53 End 2025.12.02 @ 16:52:26 Sessions 1 Manual Loads 0 Difficulty Explorer Special Mode None Game No. 202 Rogue 0 Adventurer 0 Explorer 202 Win Type - Total 0 Types 0/0/0/0/0/0/0/0/0/0 Lore% 70 Gallery% 66 Achievement% 52 Wizard Run 0 Options --------- Layout 1 ASCII 0 Keyboard 0 Movement Mouse Keybinds 0 Fullscreen 1 Font 24/Smallcaps Map View 50x35 Zoom Use 0% Tactical HUD 1 Map Filters NONE Filters NONE Steam 1 RUN: b5372b9e-4406-46aa-b94e-8ec9373f1012